fUST/lending_fUST_20251012
["ID","MTS","AMOUNT","RATE_DAILY","PERIOD"]
[390913405,1760215833348,-436.21,0.00023987,2]
[390913406,1760215833357,-500.0,0.00023987,2]
[390913407,1760215833366,-500.0,0.00023987,2]
[390913408,1760215833375,-500.0,0.00023987,2]
[390913409,1760215833384,-500.0,0.00023987,2]
[390913410,1760215833393,-500.0,0.00023987,2]
[390913411,1760215833402,-500.0,0.00023987,2]
[390913412,1760215833411,-318.39,0.00023987,2]
[390913413,1760215833420,-500.0,0.00023987,2]
[390913414,1760215833430,-500.0,0.00023987,2]
[390913415,1760215833439,-447.02,0.00023987,2]
[390913416,1760215833448,-500.0,0.00023987,2]
[390913417,1760215833458,-500.0,0.00023987,2]
[390913418,1760215833467,-500.0,0.00023987,2]
[390913419,1760215833477,-500.0,0.00023987,2]
[390913420,1760215833486,-560.68,0.00023987,2]
[390913421,1760215833496,-500.0,0.00023987,2]
[390913422,1760215833506,-524.22786505,0.00023987,2]
[390913423,1760215833521,-500.0,0.00023987,2]
[390913424,1760215833530,-500.0,0.00023987,2]
[390913425,1760215833539,-200.0,0.00023987,2]
[390913426,1760215833549,-500.0,0.00023987,2]
[390913427,1760215833558,-341.13,0.00023987,2]
[390913428,1760215833568,-500.0,0.00023987,2]
[390913429,1760215833577,-535.48,0.00023987,2]
[390913430,1760215833587,-500.0,0.00023987,2]
[390913431,1760215833596,-500.0,0.00023987,2]
[390913432,1760215833605,-500.0,0.00023987,2]
[390913433,1760215833614,-605.8,0.00023987,2]
[390913434,1760215833624,-500.0,0.00023987,2]
[390913435,1760215833633,-500.0,0.00023987,2]
[390913436,1760215833642,-500.0,0.00023987,2]
[390913437,1760215833652,-500.0,0.00023987,2]
[390913438,1760215833661,-500.0,0.00023987,2]
[390913439,1760215833671,-500.0,0.00023987,2]
[390913440,1760215833680,-500.0,0.00023987,2]
[390913441,1760215833690,-500.0,0.00023987,2]
[390913442,1760215833699,-500.0,0.00023987,2]
[390913443,1760215833708,-500.0,0.00023987,2]
[390913444,1760215833718,-500.0,0.00023987,2]
[390913445,1760215833727,-500.0,0.00023987,2]
[390913446,1760215833737,-500.0,0.00023987,2]
[390913447,1760215833746,-500.0,0.00023987,2]
[390913448,1760215833757,-345.46,0.00023987,2]
[390913449,1760215833768,-500.0,0.00023987,2]
[390913450,1760215833778,-500.0,0.00023987,2]
[390913451,1760215833787,-500.0,0.00023987,2]
[390913452,1760215833796,-500.0,0.00023987,2]
[390913453,1760215833806,-500.79678283,0.00023987,2]
[390913454,1760215833816,-500.0,0.00023987,2]
[390913455,1760215833825,-500.0,0.00023987,2]
[390913456,1760215833834,-500.0,0.00023987,2]
[390913457,1760215833843,-500.0,0.00023987,2]
[390913458,1760215833853,-500.0,0.00023987,2]
[390913459,1760215833862,-267.64,0.00023987,2]
[390913460,1760215833872,-500.0,0.00023987,2]
[390913461,1760215833881,-323.73,0.00023987,2]
[390913462,1760215833890,-500.0,0.00023987,2]
[390913463,1760215833899,-500.0,0.00023987,2]
[390913464,1760215833909,-500.0,0.00023987,2]
[390913465,1760215833918,-533.97,0.00023987,2]
[390913466,1760215833927,-207.71683342,0.00023988,2]
[390913467,1760215833937,-340.12832614,0.00023988,2]
[390913468,1760215833947,-500.0,0.00023989,2]
[390913469,1760215833956,-500.0,0.00023989,2]
[390913470,1760215833966,-500.0,0.00023989,2]
[390913471,1760215833975,-500.0,0.00023989,2]
[390913472,1760215833985,-500.0,0.00023989,2]
[390913473,1760215833995,-500.0,0.00023989,2]
[390913474,1760215834008,-500.0,0.00023989,2]
[390913475,1760215834020,-500.0,0.00023989,2]
[390913476,1760215834029,-500.0,0.00023989,2]
[390913477,1760215834040,-500.0,0.00023989,2]
[390913478,1760215834049,-500.0,0.00023989,2]
[390913479,1760215834059,-500.0,0.00023989,2]
[390913480,1760215834069,-173.42,0.00023989,2]
[390913481,1760215834080,-500.0,0.00023989,2]
[390913482,1760215834090,-500.0,0.00023989,2]
[390913483,1760215834100,-500.0,0.00023989,2]
[390913484,1760215834109,-500.0,0.00023989,2]
[390913485,1760215834119,-500.0,0.00023989,2]
[390913486,1760215834128,-500.0,0.00023989,2]
[390913487,1760215834138,-500.0,0.00023989,2]
[390913488,1760215834147,-398.18,0.00023989,2]
[390913489,1760215834156,-500.0,0.00023989,2]
[390913490,1760215834166,-500.0,0.00023989,2]
[390913491,1760215834175,-500.0,0.00023989,2]
[390913492,1760215834184,-500.0,0.00023989,2]
[390913493,1760215834193,-500.0,0.00023989,2]
[390913494,1760215834203,-500.0,0.00023989,2]
[390913495,1760215834212,-500.0,0.00023989,2]
[390913496,1760215834221,-500.0,0.00023989,2]
[390913497,1760215834230,-500.0,0.00023989,2]
[390913498,1760215834240,-500.0,0.00023989,2]
[390913499,1760215834249,-500.0,0.00023989,2]
[390913500,1760215834258,-500.0,0.00023989,2]
[390913501,1760215834271,-500.0,0.00023989,2]
[390913502,1760215834280,-500.0,0.00023989,2]
[390913503,1760215834290,-500.0,0.00023989,2]
[390913504,1760215834299,-500.0,0.00023989,2]
[390913505,1760215834309,-463.02,0.00023989,2]
[390913506,1760215834318,-525.75,0.00023989,2]
[390913507,1760215834327,-525.75,0.00023989,2]
[390913508,1760215834336,-525.75,0.00023989,2]
[390913509,1760215834346,-525.75,0.00023989,2]
[390913510,1760215834355,-525.75,0.00023989,2]
[390913511,1760215834364,-525.75,0.00023989,2]
[390913512,1760215834374,-525.75,0.00023989,2]
[390913513,1760215834383,-525.75,0.00023989,2]
[390913514,1760215834392,-525.75,0.00023989,2]
[390913515,1760215834402,-525.75,0.00023989,2]
[390913516,1760215834411,-525.75,0.00023989,2]
[390913517,1760215834420,-525.75,0.00023989,2]
[390913518,1760215834429,-525.75,0.00023989,2]
[390913519,1760215834439,-525.75,0.00023989,2]
[390913520,1760215834449,-525.75,0.00023989,2]
[390913521,1760215834458,-525.75,0.00023989,2]
[390913522,1760215834467,-525.75,0.00023989,2]
[390913523,1760215834476,-525.75,0.00023989,2]
[390913524,1760215834485,-525.75,0.00023989,2]
[390913525,1760215834494,-525.75,0.00023989,2]
[390913526,1760215834504,-525.75,0.00023989,2]
[390913527,1760215834515,-525.75,0.00023989,2]
[390913528,1760215834525,-525.75,0.00023989,2]
[390913529,1760215834534,-525.76,0.00023989,2]
[390913530,1760215834543,-500.0,0.00023989,2]
[390913531,1760215834552,-500.0,0.00023989,2]
[390913532,1760215834562,-500.0,0.00023989,2]
[390913533,1760215834572,-500.0,0.00023989,2]
[390913534,1760215834581,-500.0,0.00023989,2]
[390913535,1760215834590,-500.0,0.00023989,2]
[390913536,1760215834599,-500.0,0.00023989,2]
[390913537,1760215834608,-469.2,0.00023989,2]
[390913538,1760215834618,-500.0,0.00023989,2]
[390913539,1760215834627,-500.0,0.00023989,2]
[390913540,1760215834636,-500.0,0.00023989,2]
[390913541,1760215834646,-500.0,0.00023989,2]
[390913542,1760215834661,-500.0,0.00023989,2]
[390913543,1760215834674,-500.0,0.00023989,2]
[390913544,1760215834683,-500.0,0.00023989,2]
[390913545,1760215834693,-500.0,0.00023989,2]
[390913546,1760215834702,-500.0,0.00023989,2]
[390913547,1760215834711,-355.03586438,0.00023989,2]
[390913548,1760215834812,-144.96413562,0.00023989,2]
[390913549,1760215834821,-500.0,0.00023989,2]
[390913550,1760215834830,-88.06923551,0.00023989,2]
[390913551,1760215834841,-411.93076449,0.00023989,2]
[390913552,1760215834851,-500.0,0.00023989,2]
[390913553,1760215834860,-412.89,0.00023989,2]
[390913554,1760215834870,-500.0,0.00023989,2]
[390913555,1760215834881,-346.89180388,0.00023989,2]
[390913556,1760215834890,-100000.0,0.0002399,2]
[390913557,1760215834900,-559.0,0.00024099,2]
[390913558,1760215834909,-559.0,0.00024313,2]
[390913559,1760215834918,-559.0,0.00024325,2]
[390913560,1760215834927,-559.0,0.00024348,2]
[390913561,1760215834937,-559.0,0.00024369,2]
[390913562,1760215834946,-199.74480897,0.00024438,2]
[390913563,1760215834955,-559.0,0.00024467,2]
[390913564,1760215834964,-1000.0,0.00024521,2]
[390913565,1760215834974,-19292.2273969,0.00024524,2]
[390913566,1760215834983,-559.0,0.00024623,2]
[390913567,1760215834993,-191.31,0.00024663,9]
[390913568,1760215835006,-151.0,0.000247,8]
[390913569,1760215835017,-559.0,0.00024735,2]
[390913570,1760215835027,-168.14177406,0.00024763,9]
[390913571,1760215835036,-151.0,0.000248,6]
[390913572,1760215835046,-151.0,0.000248,8]
[390913573,1760215835056,-154.56,0.000248,13]
[390913574,1760215835066,-1390.00993404,0.000248,2]
[390913575,1760215835076,-9901.00602712,0.000248,2]
[390913576,1760215835085,-1784.79005442,0.000248,2]
[390913577,1760215835094,-176.537,0.00024855,8]
[390913578,1760215835103,-559.0,0.00024858,2]
[390913579,1760215835112,-2475.25150678,0.0002487,2]
[390913580,1760215835246,-2475.25150678,0.0002488,2]
[390913581,1760215835256,-19802.0120542,0.0002489,2]
[390913582,1760215835269,-27320.73918125,0.000249,2]
[390913596,1760215838127,-150.0,0.00021193,2]
[390913597,1760215838136,-150.0,0.0002296,2]
[390913598,1760215838146,-500.0,0.00023217,2]
[390913599,1760215838156,-500.0,0.00023241,2]
[390913600,1760215838166,-500.0,0.00023241,2]
[390913601,1760215838176,-356.2,0.00023241,2]
[390913602,1760215838186,-150.0,0.00024726,2]
[390913603,1760215838195,-21293.8007,0.000249,2]
[390913606,1760215838232,-321385.46011875,0.000249,2]
[390913608,1760215838242,-500.0,0.000249,5]
[390913610,1760215838252,-151.0,0.000249,7]
[390913611,1760215838261,-269.712476,0.000249,7]
[390913612,1760215838273,-151.0,0.000249,7]
[390913613,1760215838283,-151.0,0.000249,7]
[390913614,1760215838293,-151.0,0.000249,7]
[390913615,1760215838302,-285.098693,0.000249,7]
[390913616,1760215838312,-151.0,0.000249,7]
[390913617,1760215838321,-151.0,0.000249,7]
[390913618,1760215838330,-151.0,0.000249,7]
[390913619,1760215838341,-151.0,0.000249,7]
[390913620,1760215838350,-151.0,0.000249,7]
[390913621,1760215838361,-151.0,0.000249,7]
[390913622,1760215838370,-151.0,0.000249,7]
[390913623,1760215838380,-151.0,0.000249,7]
[390913624,1760215838390,-151.0,0.000249,7]
[390913625,1760215838399,-151.0,0.000249,7]
[390913626,1760215838409,-151.0,0.000249,2]
[390913627,1760215838418,-151.0,0.000249,7]
[390913628,1760215838427,-151.0,0.000249,7]
[390913629,1760215838436,-181.659801,0.000249,7]
[390913630,1760215838446,-151.0,0.000249,7]
[390913631,1760215838455,-175.017554,0.000249,7]
[390913632,1760215838464,-175.017554,0.000249,7]
[390913633,1760215838473,-151.0,0.000249,7]
[390913634,1760215838482,-175.017554,0.000249,7]
[390913635,1760215838491,-175.017554,0.000249,7]
[390913636,1760215838501,-151.0,0.000249,7]
[390913637,1760215838510,-151.0,0.000249,7]
[390913638,1760215838523,-151.0,0.000249,7]
[390913639,1760215838532,-151.0,0.000249,7]
[390913640,1760215838542,-151.0,0.000249,7]
[390913641,1760215838552,-297.634996,0.000249,7]
[390913642,1760215838562,-2609.37557469,0.000249,7]
[390913643,1760215838572,-151.0,0.000249,7]
[390913644,1760215838581,-151.0,0.000249,7]
[390913645,1760215838590,-151.0,0.000249,7]
[390913646,1760215838600,-275.681012,0.000249,7]
[390913647,1760215838609,-151.0,0.000249,7]
[390913648,1760215838619,-151.0,0.000249,7]
[390913649,1760215838629,-151.0,0.000249,7]
[390913650,1760215838638,-151.0,0.000249,7]
[390913651,1760215838648,-151.0,0.000249,7]
[390913652,1760215838657,-151.0,0.000249,7]
[390913653,1760215838667,-151.0,0.000249,7]
[390913654,1760215838676,-151.0,0.000249,7]
[390913655,1760215838686,-151.0,0.000249,7]
[390913656,1760215838696,-151.0,0.000249,7]
[390913657,1760215838706,-151.0,0.000249,7]
[390913658,1760215838715,-151.0,0.000249,7]
[390913659,1760215838725,-151.0,0.000249,7]
[390913660,1760215838735,-151.0,0.000249,7]
[390913661,1760215838744,-151.0,0.000249,7]
[390913662,1760215838754,-151.0,0.000249,7]
[390913663,1760215838763,-151.0,0.000249,7]
[390913664,1760215838777,-151.0,0.000249,7]
[390913665,1760215838787,-151.0,0.000249,7]
[390913666,1760215838797,-151.0,0.000249,7]
[390913667,1760215838806,-151.0,0.000249,7]
[390913668,1760215838817,-539187.202132,0.000249,2]
[390913669,1760215838826,-151.0,0.000249,7]
[390913670,1760215838835,-151.0,0.000249,7]
[390913671,1760215838845,-151.0,0.000249,7]
[390913672,1760215838855,-151.0,0.000249,7]
[390913673,1760215838869,-181.652628,0.000249,7]
[390913674,1760215838882,-151.0,0.000249,7]
[390913675,1760215838893,-151.0,0.000249,7]
[390913676,1760215838903,-151.0,0.000249,7]
[390913677,1760215838914,-153.822419,0.000249,7]
[390913678,1760215838924,-151.0,0.000249,7]
[390913679,1760215838934,-442.653936,0.000249,7]
[390913680,1760215838944,-442.653936,0.000249,7]
[390913681,1760215838953,-442.653936,0.000249,7]
[390913682,1760215838963,-442.653936,0.000249,7]
[390913683,1760215838973,-151.0,0.000249,7]
[390913684,1760215838984,-151.0,0.000249,7]
[390913685,1760215838994,-331.679738,0.000249,7]
[390913686,1760215839006,-151.0,0.000249,7]
[390913687,1760215839018,-331.679738,0.000249,7]
[390913688,1760215839028,-559.0,0.00024902,2]
[390913689,1760215839038,-500.0,0.00024973,2]
[390913690,1760215839048,-359.22761131,0.00024974,2]
[390913691,1760215839058,-160.0,0.00024976,2]
[390913692,1760215839067,-2475.25150678,0.00024989,2]
[390913693,1760215839077,-500.0,0.00024999,8]
[390913694,1760215839087,-500.0,0.00024999,8]
[390913695,1760215839096,-500.0,0.00024999,8]
[390913696,1760215839105,-500.0,0.00024999,8]
[390913697,1760215839114,-500.0,0.00024999,7]
[390913698,1760215839123,-500.0,0.00024999,8]
[390913699,1760215839133,-500.0,0.00024999,8]
[390913700,1760215839141,-500.0,0.00024999,8]
[390913701,1760215839151,-419.17782131,0.00024999,8]
[390913702,1760215839161,-500.0,0.00024999,8]
[390913703,1760215839171,-500.0,0.00024999,8]
[390913704,1760215839180,-500.0,0.00024999,8]
[390913705,1760215839190,-500.0,0.00024999,8]
[390913706,1760215839200,-500.0,0.00024999,8]
[390913707,1760215839209,-500.0,0.00024999,8]
[390913708,1760215839219,-500.0,0.00024999,8]
[390913709,1760215839228,-500.0,0.00024999,8]
[390913710,1760215839237,-470.184,0.00024999,8]
[390913711,1760215839247,-500.0,0.00024999,8]
[390913712,1760215839256,-630.64,0.00024999,8]
[390913713,1760215839269,-500.0,0.00024999,8]
[390913714,1760215839278,-500.0,0.00024999,8]
[390913715,1760215839286,-414.96597276,0.00024999,8]
[390913716,1760215839295,-500.0,0.00024999,8]
[390913717,1760215839304,-334.49364375,0.00024999,8]
[390913718,1760215839313,-1000.0,0.00024999,2]
[390913719,1760215839322,-500.0,0.00024999,8]
[390913720,1760215839331,-500.0,0.00024999,8]
[390913721,1760215839341,-559.0,0.00025009,2]
[390913722,1760215839350,-559.0,0.00025034,2]
[390913723,1760215839359,-222.79228693,0.00025038,2]
[390913724,1760215839368,-262.63705719,0.00025044,2]
[390913725,1760215839377,-20006.03981059,0.00025072,2]
[390913726,1760215839386,-500.0,0.00025073,2]
[390913727,1760215839396,-500.0,0.00025174,5]
[390913728,1760215839405,-559.0,0.00025189,2]
[390913729,1760215839414,-559.0,0.00025197,2]
[390913730,1760215839423,-1680.0,0.00025221,2]
[390913731,1760215839432,-559.0,0.00025245,2]
[390913732,1760215839441,-1151.0,0.00025337,2]
[390913733,1760215839450,-2496.18,0.0002535,3]
[390913734,1760215839461,-1248.1,0.0002535,3]
[390913735,1760215839470,-624.04,0.0002535,3]
[390913736,1760215839479,-312.02,0.0002535,3]
[390913737,1760215839489,-600.0,0.00025397,20]
[390913738,1760215839498,-559.0,0.00025401,2]
[390913739,1760215839507,-2475.25150678,0.00025449,2]
[390913740,1760215839519,-500.0,0.00025469,8]
[390913741,1760215839528,-500.0,0.00025469,8]
[390913742,1760215839537,-500.0,0.00025469,8]
[390913743,1760215839546,-500.0,0.00025469,8]
[390913744,1760215839555,-500.0,0.00025469,8]
[390913745,1760215839564,-500.0,0.00025469,8]
[390913746,1760215839573,-500.0,0.00025469,8]
[390913747,1760215839582,-500.0,0.00025469,8]
[390913748,1760215839591,-279.55,0.00025469,8]
[390913750,1760215839601,-500.0,0.00025469,8]
[390913752,1760215839610,-500.0,0.00025469,8]
[390913754,1760215839620,-500.0,0.00025469,8]
[390913755,1760215839629,-393.8,0.00025469,8]
[390913757,1760215839638,-500.0,0.00025469,8]
[390913758,1760215839648,-635.51682476,0.00025469,8]
[390913759,1760215839657,-500.0,0.00025469,8]
[390913760,1760215839666,-500.0,0.00025469,8]
[390913761,1760215839675,-500.0,0.00025469,8]
[390913762,1760215839684,-500.0,0.00025469,8]
[390913763,1760215839693,-500.0,0.00025469,8]
[390913765,1760215839703,-210.07,0.00025469,8]
[390913766,1760215839711,-502.55,0.00025469,8]
[390913767,1760215839720,-500.0,0.00025469,8]
[390913768,1760215839728,-500.0,0.00025469,8]
[390913769,1760215839737,-500.0,0.00025469,8]
[390913770,1760215839746,-500.0,0.00025469,8]
[390913771,1760215839755,-161.96,0.00025469,8]
[390913772,1760215839763,-500.0,0.00025469,8]
[390913774,1760215839775,-500.0,0.00025469,8]
[390913776,1760215839784,-293.99,0.00025469,8]
[390913777,1760215839793,-500.0,0.00025469,8]
[390913778,1760215839802,-500.0,0.00025469,8]
[390913779,1760215839812,-500.0,0.00025469,8]
[390913780,1760215839822,-610.57,0.00025469,8]
[390913781,1760215839831,-500.0,0.00025469,8]
[390913782,1760215839840,-500.0,0.00025469,8]
[390913783,1760215839850,-500.0,0.00025469,8]
[390913784,1760215839859,-500.0,0.00025469,8]
[390913785,1760215839868,-500.0,0.00025469,8]
[390913786,1760215839877,-500.0,0.00025469,8]
[390913787,1760215839886,-500.0,0.00025469,8]
[390913788,1760215839895,-599.44,0.00025469,8]
[390913789,1760215839904,-500.0,0.00025469,8]
[390913790,1760215839914,-500.0,0.00025469,8]
[390913791,1760215839923,-500.0,0.00025469,8]
[390913792,1760215839932,-500.0,0.00025469,8]
[390913793,1760215839942,-500.0,0.00025469,8]
[390913794,1760215839952,-150.0,0.00025473,2]
[390913795,1760215839963,-150.0,0.00025473,2]
[390913796,1760215839972,-187.54162087,0.00025473,2]
[390913798,1760215839981,-500.0,0.00025484,8]
[390913800,1760215839990,-500.0,0.00025484,8]
[390913801,1760215840000,-567.79,0.00025484,8]
[390913803,1760215840010,-500.0,0.00025484,8]
[390913804,1760215840022,-500.0,0.00025484,8]
[390913805,1760215840032,-423.16,0.00025484,8]
[390913807,1760215840041,-500.0,0.00025484,8]
[390913809,1760215840051,-300.0,0.00025498,20]
[390913811,1760215840060,-300.0,0.00025498,20]
[390913813,1760215840070,-300.0,0.00025498,20]
[390913814,1760215840080,-300.0,0.00025498,20]
[390913815,1760215840089,-300.0,0.00025498,20]
[390913816,1760215840099,-300.0,0.00025498,20]
[390913817,1760215840108,-300.0,0.00025498,20]
[390913818,1760215840117,-300.0,0.00025498,20]
[390913819,1760215840126,-300.0,0.00025498,20]
[390913820,1760215840135,-300.0,0.00025498,20]
[390913821,1760215840144,-300.0,0.00025498,20]
[390913822,1760215840153,-300.0,0.00025498,20]
[390913823,1760215840162,-300.0,0.00025498,20]
[390913824,1760215840172,-300.0,0.00025498,20]
[390913825,1760215840181,-300.0,0.00025498,20]
[390913826,1760215840192,-559.0,0.00025512,2]
[390913827,1760215840202,-559.0,0.00025524,2]
[390913828,1760215840211,-153.0,0.00025581,2]
[390913829,1760215840219,-153.0,0.00025581,2]
[390913830,1760215840228,-153.0,0.00025581,2]
[390913831,1760215840237,-153.0,0.00025581,2]
[390913833,1760215840247,-153.0,0.00025581,2]
[390913834,1760215840255,-2475.25150678,0.0002561,2]
[390913835,1760215840264,-10575.05025082,0.0002562,2]
[390913836,1760215840276,-559.0,0.0002562,2]
[390913837,1760215840285,-1000.0,0.00025621,2]
[390913838,1760215840294,-245.83976488,0.00025638,2]
[390913839,1760215840304,-559.0,0.00025735,2]
[390913840,1760215840313,-559.0,0.00025744,2]
[390913841,1760215840323,-559.0,0.00025754,2]
[390913842,1760215840332,-4858.7094847,0.00025808,2]
[390913843,1760215840341,-889.75983573,0.0002583,2]
[390913844,1760215840350,-559.0,0.00025942,2]
[390913845,1760215840359,-300.0,0.00026021,2]
[390913846,1760215840368,-250.0,0.00026021,2]
[390913847,1760215840377,-2639.61,0.00026027,2]
[390913848,1760215840387,-151.0,0.00026028,9]
[390913849,1760215840397,-151.0,0.00026028,9]
[390913850,1760215840407,-245.50022833,0.00026028,9]
[390913851,1760215840416,-261.78584438,0.00026028,9]
[390913852,1760215840426,-151.0,0.00026028,9]
[390913853,1760215840435,-151.0,0.00026028,9]
[390913854,1760215840445,-282.44633068,0.00026028,9]
[390913855,1760215840454,-223.19208986,0.00026028,9]
[390913856,1760215840464,-151.0,0.00026028,9]
[390913857,1760215840473,-151.0,0.00026028,9]
[390913858,1760215840482,-151.0,0.00026028,9]
[390913859,1760215840492,-151.0,0.00026028,9]
[390913860,1760215840501,-151.0,0.00026028,9]
[390913861,1760215840510,-151.0,0.00026028,9]
[390913862,1760215840521,-151.0,0.00026028,9]
[390913863,1760215840530,-215.41218431,0.00026028,9]
[390913864,1760215840540,-221.61764642,0.00026028,9]
[390913865,1760215840549,-151.0,0.00026028,9]
[390913866,1760215840558,-151.0,0.00026028,9]
[390913867,1760215840567,-151.0,0.00026028,9]
[390913868,1760215840576,-151.0,0.00026028,9]
[390913869,1760215840585,-500.0,0.00026028,9]
[390913870,1760215840594,-500.0,0.00026028,9]
[390913871,1760215840603,-151.0,0.00026028,9]
[390913872,1760215840612,-157.17235922,0.00026083,9]
[390913873,1760215840621,-198.0,0.00026083,9]
[390913874,1760215840630,-151.0,0.00026083,9]
[390913875,1760215840639,-151.40055561,0.00026083,9]
[390913876,1760215840648,-151.0,0.00026083,9]
[390913877,1760215840658,-151.0,0.00026083,9]
[390913878,1760215840667,-151.0,0.00026083,9]
[390913879,1760215840676,-151.0,0.00026083,9]
[390913880,1760215840685,-151.0,0.00026083,9]
[390913881,1760215840694,-500.0,0.00026083,9]
[390913882,1760215840703,-500.0,0.00026083,9]
[390913883,1760215840712,-151.0,0.00026083,9]
[390913884,1760215840721,-171.40644998,0.00026086,2]
[390913885,1760215840730,-151.0,0.00026138,9]
[390913886,1760215840739,-151.0,0.00026138,9]
[390913887,1760215840749,-151.0,0.00026138,9]
[390913888,1760215840758,-151.0,0.00026138,9]
[390913889,1760215840769,-151.0,0.00026138,9]
[390913890,1760215840779,-340.29465425,0.00026138,9]
[390913891,1760215840788,-500.0,0.00026138,9]
[390913892,1760215840797,-151.0,0.00026138,9]
[390913893,1760215840806,-1390.00993402,0.00026153,2]
[390913894,1760215840816,-1500.0,0.00026168,2]
[390913895,1760215840825,-198.0,0.00026192,9]
[390913896,1760215840835,-205.80567964,0.00026192,9]
[390913897,1760215840845,-198.0,0.00026192,9]
[390913898,1760215840854,-151.0,0.00026192,9]
[390913899,1760215840863,-151.0,0.00026192,9]
[390913900,1760215840873,-500.0,0.00026192,9]
[390913901,1760215840882,-151.0,0.00026192,9]
[390913902,1760215840993,-2609.37557469,0.000262,2]
[390913903,1760215841010,-279.416337,0.00026221,2]
[390913904,1760215841023,-268.88724284,0.00026238,2]
[390913905,1760215841032,-152.87937848,0.00026247,9]
[390913906,1760215841043,-214.2,0.00026247,9]
[390913907,1760215841053,-500.0,0.00026247,9]
[390913908,1760215841062,-151.0,0.00026247,9]
[390913909,1760215841072,-160.0,0.000263,2]
[390913910,1760215841082,-172.65316788,0.000263,2]
[390913911,1760215841091,-1058.32870369,0.000263,2]
[390913912,1760215841100,-580.48260469,0.000263,2]
[390913913,1760215841110,-500.0,0.00026302,9]
[390913914,1760215841119,-213.08097716,0.00026302,9]
[390913915,1760215841128,-500.0,0.00026357,9]
[390913916,1760215841137,-1084.1246254,0.00026386,2]
[390913917,1760215841147,-500.0,0.00026412,9]
[390913918,1760215841157,-500.0,0.00026466,9]
[390913919,1760215841166,-187.48,0.00026492,2]
[390913920,1760215841175,-172.65316788,0.000265,2]
[390913921,1760215841184,-1058.32870369,0.000265,2]
[390913922,1760215841194,-580.48260469,0.000265,2]
[390913923,1760215841203,-466.0,0.00026521,9]
[390913924,1760215841212,-450.0,0.00026568,2]
[390913925,1760215841222,-350.0,0.00026568,2]
[390913926,1760215841231,-2475.25150678,0.00026606,2]
[390913927,1760215841241,-2000.0,0.00026716,2]
[390913928,1760215841250,-172.65316788,0.000268,2]
[390913929,1760215841259,-1058.32870369,0.000268,2]
[390913930,1760215841270,-580.48260469,0.000268,2]
[390913931,1760215841279,-291.9347208,0.00026838,2]
[390913932,1760215841289,-1784.7900544,0.0002685,2]
[390913933,1760215841298,-4196.0,0.00026883,2]
[390913934,1760215841307,-980.0,0.00026883,2]
[390913935,1760215841316,-630.0,0.00026883,2]
[390913936,1760215841325,-2159.0,0.00026883,2]